bitfinex-derivatives/quotes_BTCF0:USTF0_20240923
["timestamp","ask_amount","ask_price","bid_price","bid_amount"]
[1727098597527,0.164964,63315.0,63314.0,0.00236912]
[1727098597727,0.007,63315.0,63300.0,0.3608]
[1727098598031,0.3608,63311.0,63308.0,0.078989]
[1727098598325,0.007,63315.0,63301.0,1.69]
[1727098598530,0.005,63315.0,63314.0,0.078983]
[1727098598727,0.3608,63320.0,63314.0,0.078983]
[1727098598925,0.3608,63320.0,63306.0,0.5508]
[1727098598926,0.3608,63320.0,63290.0,0.0117]
[1727098598927,0.079012,63291.0,63290.0,0.0117]
[1727098599135,0.079014,63289.0,63287.0,0.008]
[1727098599336,0.079018,63286.0,63277.0,0.1199]
[1727098599524,0.3608,63280.0,63277.0,0.1199]
[1727098600023,0.3608,63291.0,63279.0,0.19]
[1727098600221,0.3608,63291.0,63284.0,0.19]
[1727098600423,0.3608,63291.0,63285.0,0.079019]
[1727098600739,0.3608,63291.0,63277.0,0.3099]
[1727098600927,0.3608,63291.0,63280.0,0.079025]
[1727098601130,0.079017,63287.0,63278.0,0.23585592]
[1727098601322,0.065017,63287.0,63278.0,0.079027]
[1727098601520,0.3608,63285.0,63278.0,0.079027]
[1727098601831,0.3608,63279.0,63277.0,0.1199]
[1727098602026,0.3608,63279.0,63272.0,1.5]
[1727098602223,0.3608,63279.0,63272.0,1.69112]
[1727098602433,0.001,63280.0,63272.0,1.50112]
[1727098602622,0.439828,63278.0,63272.0,1.50112]
[1727098603025,0.439828,63278.0,63277.0,0.014]
[1727098604626,0.439828,63278.0,63272.0,1.50112]
[1727098604826,0.440828,63278.0,63272.0,1.5]
[1727098605035,0.079029,63277.0,63272.0,1.5]
[1727098605330,0.079031,63276.0,63272.0,1.5]
[1727098605835,0.19,63275.0,63257.0,0.3268]
[1727098606035,0.3628,63278.0,63236.0,0.32239248]
[1727098606036,0.19,63264.0,63250.0,0.0569]
[1727098606238,0.19,63264.0,63251.0,1.5]
[1727098606239,0.3608,63256.0,63251.0,1.5]
[1727098606537,0.25796586,63256.0,63251.0,1.50112]
[1727098606930,0.079048,63262.0,63254.0,0.079057]
[1727098607541,0.3618,63256.0,63251.0,1.50112]
[1727098607844,0.079062,63251.0,63248.0,0.36317162]
[1727098608247,0.440855,63256.0,63249.0,1.579064]
[1727098608439,0.3618,63256.0,63248.0,0.36317162]
[1727098608646,0.079062,63251.0,63248.0,0.3608]
[1727098608860,0.19,63249.0,63248.0,0.3608]
[1727098609048,0.079075,63241.0,63239.0,1.5]
[1727098609349,0.3608,63244.0,63239.0,1.5]
[1727098609741,0.079069,63245.0,63239.0,1.5]
[1727098610042,0.3608,63245.0,63239.0,1.5]
[1727098610247,0.079073,63242.0,63239.0,1.5]
[1727098611052,0.001,63241.0,63239.0,1.5]
[1727098611346,0.001,63241.0,63236.0,0.43988]
[1727098611553,0.001,63241.0,63236.0,0.07908]
[1727098611742,0.079074,63241.0,63230.0,0.01562574]
[1727098611950,0.001,63242.0,63234.0,0.3608]
[1727098612341,0.001,63242.0,63241.0,0.3608]
[1727098612536,0.001,63245.0,63241.0,0.3608]
[1727098612837,0.001,63245.0,63243.0,0.079071]
[1727098613139,0.3608,63259.0,63243.0,0.079071]
[1727098613340,0.3608,63253.0,63243.0,0.079071]
[1727098613539,0.3608,63253.0,63234.0,0.3608]
[1727098613540,0.079064,63250.0,63245.0,0.079069]
[1727098613746,0.079064,63250.0,63241.0,0.3608]
[1727098613747,0.3608,63253.0,63246.0,0.079067]
[1727098613941,0.3608,63253.0,63247.0,0.079066]
[1727098614146,0.3608,63253.0,63243.0,0.19]
[1727098614346,0.3608,63259.0,63251.0,0.079061]
[1727098614347,0.001,63256.0,63251.0,0.079061]
[1727098614553,0.001,63256.0,63247.0,0.3608]
[1727098614741,0.001,63256.0,63254.0,0.079058]
[1727098614941,0.0023725,63260.0,63254.0,0.5508]
[1727098615137,0.0023725,63260.0,63259.0,0.19]
[1727098615342,0.0023725,63260.0,63259.0,0.269052]
[1727098615752,0.079032,63275.0,63259.0,2.52504]
[1727098615959,0.439831,63276.0,63265.0,0.5508]
[1727098616250,0.079039,63270.0,63265.0,0.3608]
[1727098616666,0.00237178,63280.0,63274.0,0.079032]
[1727098616950,0.00237178,63280.0,63275.0,0.3608]
[1727098617254,0.004,63276.0,63275.0,0.439832]
[1727098618252,0.004,63276.0,63275.0,1.103952]
[1727098618461,0.017,63276.0,63275.0,1.703952]
[1727098618955,0.017,63276.0,63275.0,3.203952]
[1727098619171,0.013,63276.0,63275.0,3.203952]
[1727098619769,0.013,63276.0,63275.0,3.204952]
[1727098619962,0.00237178,63280.0,63279.0,0.079027]
[1727098620462,0.00237071,63307.0,63281.0,0.079023]
[1727098620775,0.078998,63302.0,63293.0,0.3608]
[1727098621573,0.00237071,63307.0,63306.0,0.078993]
[1727098622763,0.00437071,63307.0,63306.0,0.078993]
[1727098622963,0.00837071,63307.0,63306.0,0.078993]
[1727098623561,0.00437071,63307.0,63306.0,0.080993]
[1727098624262,0.00437071,63307.0,63301.0,0.3608]
[1727098624263,0.00837071,63307.0,63301.0,0.3608]
[1727098624774,0.08536271,63307.0,63306.0,0.003]
[1727098625669,0.078997,63303.0,63302.0,0.078998]
[1727098625971,0.078998,63302.0,63301.0,0.00412]
[1727098626158,0.078998,63302.0,63301.0,0.003]
[1727098626860,0.37417071,63307.0,63301.0,0.193]
[1727098626861,0.078993,63306.0,63301.0,0.193]
[1727098627056,0.37417071,63307.0,63306.0,0.078993]
[1727098627256,0.36317071,63307.0,63301.0,0.193]
[1727098627470,0.008,63302.0,63301.0,0.001]
[1727098627671,0.086998,63302.0,63301.0,0.001]
[1727098627966,0.008,63302.0,63301.0,0.079999]
[1727098628464,0.008,63302.0,63301.0,0.081999]
[1727098629059,0.078995,63305.0,63301.0,0.003]
[1727098629363,0.005,63302.0,63301.0,0.079999]
[1727098629669,0.013,63302.0,63301.0,0.079999]
[1727098630258,0.005,63302.0,63301.0,0.078999]
[1727098630868,0.003,63305.0,63298.0,0.3608]
[1727098630869,0.003,63305.0,63304.0,0.078995]
[1727098631278,0.003,63305.0,63304.0,0.439795]
[1727098631574,0.003,63305.0,63304.0,0.51879]
[1727098631769,0.003,63305.0,63304.0,0.439795]
[1727098632270,0.003,63305.0,63304.0,1.939795]
[1727098632570,0.00237071,63307.0,63306.0,0.078993]
[1727098632967,0.00237071,63307.0,63306.0,0.439793]
[1727098634072,0.00737071,63307.0,63306.0,0.439793]
[1727098634475,0.00237071,63307.0,63306.0,0.439793]
[1727098634673,0.00737071,63307.0,63306.0,0.078993]
[1727098634869,0.00737071,63307.0,63306.0,0.439793]
[1727098635077,0.00737071,63307.0,63304.0,0.00112]
[1727098635078,0.078994,63305.0,63304.0,0.00112]
[1727098635259,0.00937071,63307.0,63291.0,0.3608]
[1727098635464,0.00937071,63307.0,63292.0,0.269009]
[1727098635673,0.00937071,63307.0,63301.0,0.078998]
[1727098635674,0.078998,63303.0,63301.0,0.078998]
[1727098636064,0.19,63304.0,63293.0,1.50096]
[1727098636271,0.079009,63294.0,63289.0,0.3608]
[1727098636472,0.079009,63293.0,63292.0,0.07901]
[1727098636770,0.079005,63297.0,63289.0,0.3608]
[1727098636971,0.079006,63296.0,63289.0,0.3608]
[1727098637375,0.079011,63292.0,63291.0,0.079008]
[1727098637677,0.079011,63292.0,63287.0,1.63386]
[1727098637678,0.071015,63288.0,63287.0,0.00096]
[1727098637867,0.079017,63287.0,63276.0,0.3608]
[1727098638064,0.079013,63290.0,63280.0,0.19]
[1727098638269,0.079013,63290.0,63289.0,0.008]
[1727098638976,0.10463279,63290.0,63285.0,0.3608]
[1727098639178,0.079014,63289.0,63288.0,0.079015]
[1727098639376,0.10463331,63289.0,63288.0,0.079015]
[1727098639579,0.079023,63282.0,63277.0,1.5]
[1727098639779,0.079018,63286.0,63283.0,0.079021]
[1727098639966,0.09412855,63288.0,63278.0,0.31716442]
[1727098640167,0.079026,63280.0,63278.0,0.31716442]
[1727098640366,0.09412855,63284.0,63283.0,0.079022]
[1727098640592,0.09412855,63284.0,63277.0,1.5]
[1727098640593,0.02562259,63284.0,63277.0,1.5]
[1727098640771,0.02562259,63284.0,63283.0,0.079022]
[1727098641274,0.02562259,63285.0,63283.0,0.079022]
[1727098641467,0.11957488,63284.0,63283.0,0.079022]
[1727098641780,0.11957488,63284.0,63277.0,1.5]
[1727098641781,0.11957658,63284.0,63277.0,1.5]
[1727098641982,0.02562259,63283.0,63277.0,1.5]
[1727098642277,0.002,63284.0,63282.0,0.079023]
[1727098642574,0.002,63288.0,63287.0,0.158034]
[1727098642791,0.09406962,63289.0,63288.0,0.079015]
[1727098643084,0.02561747,63289.0,63288.0,0.15803]
[1727098643382,0.10966635,63298.0,63288.0,0.15803]
[1727098643383,0.078997,63303.0,63301.0,0.078998]
[1727098643581,0.079001,63300.0,63299.0,0.079002]
[1727098643877,0.079001,63300.0,63296.0,0.3608]
[1727098644089,0.079004,63297.0,63296.0,0.3608]
[1727098644383,0.079004,63297.0,63296.0,0.4078659]
[1727098644564,0.079004,63297.0,63296.0,1.8578]
[1727098644770,0.079004,63297.0,63296.0,1.9839232]
[1727098645076,0.079004,63297.0,63296.0,1.5]
[1727098645281,0.079004,63297.0,63296.0,1.579005]
[1727098645466,0.002,63297.0,63296.0,1.579005]
[1727098645871,0.081004,63297.0,63296.0,0.1261232]
[1727098646070,0.008,63300.0,63299.0,0.079002]
[1727098646370,0.087,63300.0,63299.0,0.079002]
[1727098646565,0.087,63300.0,63299.0,0.1261202]
[1727098646773,0.008,63300.0,63299.0,0.439802]
[1727098646973,0.008,63300.0,63299.0,0.50255654]
[1727098647176,0.008,63300.0,63299.0,0.439802]
[1727098647375,0.0639,63319.0,63303.0,0.078996]
[1727098647579,0.078984,63314.0,63311.0,0.078986]
[1727098647780,0.0639,63319.0,63311.0,0.078986]
[1727098647781,0.078984,63313.0,63311.0,0.078986]
[1727098648079,0.0639,63319.0,63314.0,0.078982]
[1727098648284,0.0639,63319.0,63310.0,0.04718948]
[1727098648285,0.439781,63316.0,63315.0,0.078982]
[1727098648668,0.079981,63316.0,63315.0,0.078982]
[1727098648879,0.19,63328.0,63314.0,0.19]
[1727098648880,0.078975,63321.0,63314.0,0.19]
[1727098649081,0.078974,63321.0,63320.0,0.04717485]
[1727098649284,0.078972,63324.0,63319.0,0.078976]
[1727098649477,0.078974,63321.0,63320.0,0.04717212]
[1727098649680,0.3608,63325.0,63319.0,0.12614812]
[1727098649681,0.078975,63320.0,63319.0,0.12614812]
[1727098649873,0.078975,63320.0,63319.0,0.078976]
[1727098650073,0.078975,63320.0,63319.0,0.14187476]
[1727098650273,0.10458156,63320.0,63319.0,0.078976]
[1727098650485,0.19865118,63320.0,63319.0,0.078976]
[1727098650690,0.11967618,63320.0,63319.0,0.078976]
[1727098650874,0.09406962,63320.0,63319.0,0.078976]
[1727098651072,0.078979,63318.0,63308.0,0.19]
[1727098651569,0.02560721,63317.0,63312.0,0.23836736]
[1727098651774,0.02560721,63317.0,63316.0,0.07898]
[1727098652077,0.02560721,63317.0,63304.0,0.68856]
[1727098652078,0.19,63317.0,63304.0,0.68856]
[1727098652270,0.078985,63312.0,63304.0,0.68856]
[1727098652470,0.10459221,63312.0,63304.0,0.68856]
[1727098652676,0.078994,63305.0,63304.0,0.32776]
[1727098652883,1.12923221,63312.0,63295.0,1.50096]
[1727098652884,0.078995,63304.0,63295.0,1.50096]
[1727098653081,0.629785,63312.0,63295.0,1.50096]
[1727098653082,0.09438764,63308.0,63301.0,0.078999]
[1727098653285,0.078998,63302.0,63301.0,0.078999]
[1727098653685,0.079004,63298.0,63297.0,0.079003]
[1727098654191,0.09438764,63301.0,63300.0,0.079]
[1727098654387,0.02561462,63301.0,63300.0,0.079]
[1727098654776,0.10461362,63301.0,63300.0,0.079]
[1727098654975,0.079003,63298.0,63295.0,1.5]
[1727098655175,0.079003,63298.0,63297.0,0.079004]
[1727098655392,0.10461879,63298.0,63297.0,0.079004]
[1727098655590,0.079007,63295.0,63294.0,0.00236987]
[1727098655778,0.10462279,63295.0,63294.0,0.00236987]
[1727098655980,0.29462452,63295.0,63294.0,0.00236987]
[1727098656181,0.38902697,63295.0,63294.0,0.00236987]
[1727098656383,0.29462452,63295.0,63294.0,0.00236987]
[1727098657691,0.30062452,63295.0,63294.0,0.00336987]
[1727098658289,0.282007,63295.0,63294.0,0.00336987]
[1727098661098,0.092007,63295.0,63294.0,0.00336987]
[1727098661992,0.171014,63295.0,63294.0,0.00336987]
[1727098662494,0.158026,63290.0,63288.0,0.3608]
[1727098662694,0.079014,63289.0,63288.0,0.3608]
[1727098662996,0.079013,63290.0,63289.0,0.079014]
[1727098663299,0.079013,63290.0,63289.0,0.14191276]
[1727098663483,0.079013,63290.0,63288.0,0.3608]
[1727098663484,0.079009,63294.0,63288.0,0.42369876]
[1727098663684,0.013,63295.0,63294.0,0.079008]
[1727098663884,0.008,63295.0,63294.0,0.079008]
[1727098664083,0.079006,63296.0,63295.0,0.079007]
[1727098664596,0.079007,63295.0,63293.0,0.04719528]
[1727098664786,0.0023709,63303.0,63293.0,0.04719528]
[1727098664787,0.079008,63294.0,63293.0,0.04719528]
[1727098665394,0.079008,63294.0,63293.0,0.04720363]
[1727098665797,0.079008,63294.0,63293.0,0.12621263]
[1727098666097,0.008,63295.0,63294.0,0.079008]
[1727098666688,0.015,63296.0,63295.0,0.080007]
[1727098666901,0.015,63296.0,63295.0,0.48801063]
[1727098667089,0.0813679,63303.0,63302.0,0.078998]
[1727098667685,0.0023709,63303.0,63302.0,0.268998]
[1727098667992,0.078977,63319.0,63303.0,0.078997]
[1727098668200,0.078983,63315.0,63314.0,0.439782]
[1727098668396,0.078983,63315.0,63314.0,0.3608]
[1727098669893,0.078988,63310.0,63308.0,1.56556]
[1727098670095,0.157978,63309.0,63308.0,1.5]
[1727098670295,0.078993,63306.0,63302.0,0.3618]
[1727098670595,0.078993,63307.0,63306.0,0.078993]
[1727098670795,0.078992,63307.0,63306.0,1.5]
[1727098671495,0.078992,63307.0,63302.0,0.3618]
[1727098671496,0.078997,63303.0,63302.0,0.40798009]
[1727098671689,0.078997,63303.0,63302.0,0.3608]
[1727098671889,0.157994,63303.0,63302.0,0.3608]
[1727098672899,0.078997,63303.0,63302.0,0.3608]
[1727098673399,0.10461125,63303.0,63302.0,0.3608]
[1727098673899,0.079004,63297.0,63296.0,0.00104]
[1727098674101,0.19905643,63297.0,63290.0,0.079013]
[1727098674410,0.079018,63286.0,63285.0,0.439818]
[1727098674897,0.079018,63286.0,63285.0,1.939818]
[1727098675595,0.53425524,63294.0,63288.0,0.079014]
[1727098675800,0.02561885,63293.0,63289.0,0.079014]
[1727098676408,0.02561885,63293.0,63285.0,1.8698]
[1727098676409,0.079018,63286.0,63285.0,1.8698]
[1727098676588,0.27810457,63286.0,63285.0,0.008]
[1727098676785,0.26267533,63286.0,63285.0,0.008]
[1727098676998,0.30464599,63286.0,63285.0,0.008]
[1727098677204,0.075024,63281.0,63271.0,0.4245]
[1727098677495,0.09864778,63281.0,63272.0,0.19]
[1727098677697,0.09864778,63281.0,63279.0,0.079026]
[1727098677698,0.073024,63281.0,63279.0,0.079026]
[1727098677903,0.073024,63281.0,63280.0,0.08139538]
[1727098678093,0.079014,63289.0,63283.0,0.079021]
[1727098678293,0.079024,63281.0,63280.0,0.00237038]
[1727098678496,0.079024,63281.0,63280.0,0.01137038]
[1727098678696,0.158048,63281.0,63280.0,0.009]
[1727098678896,0.158048,63281.0,63280.0,0.017]
[1727098678897,0.27909408,63281.0,63280.0,0.017]
[1727098679289,0.18467011,63281.0,63280.0,0.017]
[1727098679687,0.18467011,63281.0,63280.0,0.096025]
[1727098679688,0.02662211,63281.0,63280.0,0.096025]
[1727098679897,0.10564611,63281.0,63280.0,0.096025]
[1727098680091,0.080024,63281.0,63280.0,0.096025]
[1727098680294,0.080024,63281.0,63280.0,0.087025]
[1727098680295,0.001,63281.0,63280.0,0.087025]
[1727098680604,0.080014,63289.0,63283.0,0.005]
[1727098680800,0.3608,63285.0,63283.0,0.005]
[1727098681104,0.07902,63284.0,63283.0,0.005]
[1727098681299,0.3608,63285.0,63280.0,0.06418009]
[1727098681504,0.269024,63281.0,63280.0,0.017]
[1727098681708,0.427072,63281.0,63280.0,0.017]
[1727098681901,0.19,63281.0,63271.0,0.04718009]
[1727098682203,0.0637,63284.0,63268.0,0.04718009]
[1727098682204,0.158078,63269.0,63268.0,0.04718009]
[1727098682407,0.079042,63267.0,63266.0,0.04718009]
[1727098682789,0.079043,63266.0,63265.0,0.04718009]
[1727098682991,0.19,63270.0,63262.0,0.04718009]
[1727098682992,0.079044,63265.0,63262.0,0.04718009]
[1727098683196,0.079048,63262.0,63261.0,0.04718009]
[1727098683494,0.079045,63264.0,63260.0,0.00237114]
[1727098683495,0.079049,63261.0,63260.0,0.00237114]
[1727098683699,0.074049,63261.0,63256.0,0.04718009]
[1727098683895,0.074049,63261.0,63251.0,1.5]
[1727098683896,0.079055,63256.0,63255.0,0.04718009]
[1727098684212,0.3608,63259.0,63251.0,0.00096]
[1727098684407,0.079061,63251.0,63250.0,0.0674]
[1727098684596,0.075061,63251.0,63250.0,0.0674]
[1727098685294,0.071061,63251.0,63250.0,0.0674]
[1727098685494,0.3608,63253.0,63250.0,0.0674]
[1727098685794,0.3628,63259.0,63252.0,0.07906]
[1727098685994,0.3618,63259.0,63252.0,0.07906]
[1727098686191,0.001,63259.0,63252.0,0.07906]
[1727098686711,0.08006,63253.0,63251.0,0.3608]
[1727098686905,0.07906,63252.0,63251.0,0.3608]
[1727098688104,0.07906,63252.0,63251.0,0.439861]
[1727098688302,0.3618,63259.0,63253.0,0.079059]
[1727098688702,0.3618,63259.0,63255.0,0.19]
[1727098688902,0.079056,63255.0,63254.0,0.079057]
[1727098689206,0.3618,63259.0,63251.0,0.3608]
[1727098689390,0.3608,63259.0,63248.0,0.079065]
[1727098689596,0.079061,63251.0,63250.0,0.3608]
[1727098690995,0.080061,63251.0,63250.0,0.3608]
[1727098691192,0.001,63251.0,63250.0,0.3608]
[1727098691403,0.001,63251.0,63250.0,0.629863]
[1727098691906,0.002,63251.0,63250.0,0.629863]
[1727098692501,0.002,63251.0,63250.0,0.439863]
[1727098692901,0.002,63251.0,63250.0,1.939863]
[1727098693110,0.002,63251.0,63250.0,2.129863]
[1727098694499,0.3608,63259.0,63258.0,0.079053]
[1727098694899,0.07906,63255.0,63240.0,0.2535]
[1727098695100,0.079067,63247.0,63237.0,0.3608]
[1727098695411,0.079078,63238.0,63237.0,0.3608]
[1727098695709,0.3608,63250.0,63237.0,0.3608]
[1727098696008,0.3608,63250.0,63240.0,0.19]
[1727098696210,0.079069,63245.0,63244.0,0.079069]
[1727098696510,0.079061,63252.0,63251.0,0.079061]
[1727098696807,0.001,63255.0,63251.0,0.3608]
[1727098697197,0.07906,63252.0,63251.0,0.3608]
[1727098697401,0.07906,63252.0,63245.0,0.1949]
[1727098697402,0.079064,63249.0,63245.0,0.13]
[1727098697597,0.079065,63248.0,63247.0,0.079066]
[1727098698108,0.079058,63254.0,63244.0,0.3608]
[1727098698308,0.079058,63254.0,63244.0,0.43987]
[1727098698309,0.079069,63245.0,63244.0,0.43987]
[1727098698527,0.079069,63245.0,63244.0,1.93987]
[1727098699014,0.079069,63245.0,63244.0,1.8608]
[1727098699809,0.078069,63245.0,63244.0,1.93987]
[1727098700411,0.002,63248.0,63247.0,0.079066]
[1727098700607,0.002,63248.0,63247.0,0.209066]
[1727098701109,0.001,63248.0,63247.0,0.99933078]
[1727098701320,0.3954,63269.0,63263.0,0.079047]
[1727098701515,0.08141842,63264.0,63263.0,0.209047]
[1727098701999,0.49172,63276.0,63263.0,0.209047]
[1727098702000,0.440751,63276.0,63263.0,0.209047]
[1727098702202,0.079024,63281.0,63275.0,0.13]
[1727098702419,0.079024,63281.0,63271.0,0.13]
[1727098702420,0.07903,63276.0,63271.0,0.13]
[1727098702603,0.07903,63276.0,63275.0,0.209032]
[1727098702910,0.079032,63275.0,63272.0,1.50108]
[1727098703114,0.08139361,63283.0,63272.0,1.5]
[1727098703115,0.079034,63273.0,63272.0,1.5]
[1727098704316,0.079034,63273.0,63271.0,0.079035]
[1727098704317,0.079035,63272.0,63271.0,0.079035]
[1727098704915,0.079035,63272.0,63271.0,1.5]
[1727098705609,0.014,63273.0,63272.0,0.079035]
[1727098705807,0.014,63273.0,63271.0,1.5]
[1727098705808,0.079035,63272.0,63271.0,1.50096]
[1727098706017,0.079035,63272.0,63271.0,1.579037]
[1727098706225,0.014,63273.0,63272.0,0.079035]
[1727098706414,0.0008,63277.0,63276.0,0.07903]
[1727098706609,0.3616,63284.0,63276.0,0.5508]
[1727098706803,0.3608,63284.0,63281.0,0.079023]
[1727098707008,0.00237161,63283.0,63282.0,0.079023]
[1727098707217,0.00237161,63283.0,63282.0,0.50272978]
[1727098707417,0.00237161,63283.0,63282.0,0.50273091]
[1727098707613,0.00237161,63283.0,63281.0,0.06290791]
[1727098707808,0.00237161,63283.0,63280.0,0.04718237]
[1727098708013,0.00237161,63283.0,63278.0,0.04718237]
[1727098708322,0.079029,63277.0,63276.0,0.40800446]
[1727098708512,0.079029,63277.0,63276.0,0.3608]
[1727098709616,0.079024,63281.0,63280.0,0.079025]
[1727098709924,0.079027,63279.0,63277.0,0.04720032]
[1727098710112,0.00937161,63283.0,63276.0,0.48703032]
[1727098710113,0.079028,63278.0,63276.0,0.48703032]
[1727098710414,0.00937161,63283.0,63276.0,0.43983]
[1727098710415,0.11465339,63277.0,63276.0,0.43983]
[1727098710713,0.12365339,63277.0,63276.0,0.3608]
[1727098710912,0.16492491,63277.0,63276.0,0.3608]
[1727098711520,0.07689591,63277.0,63276.0,0.43983]
[1727098711708,0.03562502,63277.0,63276.0,0.62983]
[1727098712116,0.03562201,63277.0,63276.0,0.62983]
[1727098712308,0.008,63278.0,63277.0,0.079029]
[1727098712505,0.03362201,63278.0,63277.0,0.158058]
[1727098712712,0.008,63278.0,63277.0,0.158058]
[1727098713010,0.09433056,63282.0,63281.0,0.079024]
[1727098713206,0.02562141,63282.0,63281.0,0.079024]
[1727098713408,0.11989783,63282.0,63281.0,0.269024]
[1727098713613,0.00237161,63283.0,63282.0,0.079023]
[1727098713818,0.00237161,63283.0,63282.0,0.211223]
[1727098714016,0.09427642,63289.0,63287.0,0.079017]
[1727098714210,0.09427642,63289.0,63288.0,0.079015]
[1727098714427,0.09427642,63295.0,63288.0,0.23567064]
[1727098714621,0.09427642,63301.0,63295.0,0.079007]
[1727098714917,0.09427642,63302.0,63301.0,0.078999]
[1727098715109,0.09427642,63303.0,63302.0,0.078998]
[1727098715511,0.02561315,63303.0,63302.0,0.078998]
[1727098715728,0.1198894,63305.0,63304.0,0.078995]
[1727098716510,0.09427642,63311.0,63300.0,0.5508]
[1727098716716,0.02561136,63310.0,63309.0,0.268989]
[1727098716923,0.02561136,63310.0,63309.0,0.078989]
[1727098717114,0.09427642,63313.0,63309.0,0.19]
[1727098717317,0.09427642,63315.0,63309.0,0.19]
[1727098717516,0.00237031,63319.0,63314.0,0.19]
[1727098717827,0.00237031,63319.0,63318.0,0.078978]
[1727098718213,0.00237031,63319.0,63314.0,0.19]
[1727098718415,0.00237031,63319.0,63308.0,0.23703333]
[1727098718416,0.078983,63314.0,63308.0,0.19]
[1727098718618,0.3608,63320.0,63313.0,0.5508]
[1727098718813,0.3608,63320.0,63318.0,0.078978]
[1727098719013,0.3608,63320.0,63313.0,0.5508]
[1727098719218,0.3608,63320.0,63314.0,0.078983]
[1727098719625,0.3608,63320.0,63309.0,0.19]
[1727098719809,0.3608,63320.0,63308.0,0.3608]
[1727098719810,0.078981,63316.0,63314.0,0.078982]
[1727098721014,0.078981,63316.0,63314.0,1.5]
[1727098721015,0.078982,63315.0,63314.0,1.5]
[1727098721922,0.078982,63315.0,63314.0,1.578983]
[1727098722122,0.078982,63315.0,63314.0,1.5]
[1727098722723,0.078982,63315.0,63314.0,1.578983]
[1727098722927,0.078982,63315.0,63314.0,0.078983]
[1727098723317,0.092982,63315.0,63314.0,0.078983]
[1727098723512,0.106982,63315.0,63314.0,0.078983]
[1727098723915,0.078985,63313.0,63309.0,1.50096]
[1727098724315,0.078985,63313.0,63309.0,1.5]
[1727098725139,0.028,63315.0,63314.0,0.078983]
[1727098725519,0.12227642,63315.0,63314.0,0.22757835]
[1727098725718,0.078986,63312.0,63309.0,1.691]
[1727098725915,0.078986,63312.0,63309.0,1.69]
[1727098726129,0.014,63313.0,63309.0,1.5]
[1727098726425,0.014,63313.0,63308.0,0.3608]
[1727098726426,0.12227642,63313.0,63312.0,0.078985]
[1727098726626,0.22686997,63313.0,63312.0,0.078985]
[1727098727026,0.19886997,63313.0,63312.0,0.078985]
[1727098727528,0.19886997,63313.0,63310.0,1.50096]
[1727098727529,0.078987,63311.0,63310.0,1.50096]
[1727098727719,0.10459655,63311.0,63310.0,1.5]
[1727098727949,0.02560955,63311.0,63310.0,1.578988]
[1727098728120,0.10459655,63311.0,63310.0,1.578988]
[1727098728323,0.10459655,63311.0,63310.0,0.078988]
[1727098729240,0.11988597,63311.0,63309.0,1.5009121]
[1727098729530,0.19838868,63310.0,63308.0,0.3608]
[1727098729831,0.02006987,63309.0,63308.0,0.43979]
[1727098730237,1.28394987,63309.0,63307.0,0.00650743]
[1727098730444,0.62740763,63308.0,63302.0,0.00373844]
[1727098730735,0.62740763,63308.0,63285.0,0.3608]
[1727098730736,0.079007,63295.0,63285.0,0.3608]
[1727098730936,0.49816387,63295.0,63285.0,0.3608]
[1727098731134,0.49816387,63295.0,63284.0,0.00990982]
[1727098731135,0.38849752,63295.0,63284.0,0.00990982]
[1727098731321,0.24526631,63295.0,63284.0,0.00990982]
[1727098731521,0.158018,63293.0,63284.0,0.00990982]
[1727098731718,0.08725231,63293.0,63284.0,0.00990982]
[1727098731927,0.70883,63288.0,63284.0,0.00990982]
[1727098732134,0.158038,63285.0,63281.0,0.01009755]
[1727098732322,0.158066,63274.0,63268.0,0.01309662]
[1727098732629,0.92029366,63274.0,63268.0,0.01309662]
[1727098733025,0.92029524,63274.0,63268.0,0.01309662]
[1727098733538,0.47412,63273.0,63268.0,0.01309662]
[1727098733731,0.269039,63269.0,63268.0,0.01309662]
[1727098734326,0.158084,63267.0,63263.0,0.01662688]
[1727098734627,0.079049,63261.0,63260.0,0.01048031]
[1727098736839,0.080049,63261.0,63260.0,0.01048031]
[1727098737334,0.081049,63261.0,63260.0,0.01048031]
[1727098738149,0.350098,63261.0,63260.0,0.01048031]
[1727098739533,0.081049,63261.0,63260.0,0.01048031]
[1727098741529,0.002,63261.0,63260.0,0.01048031]
[1727098742241,0.350098,63261.0,63260.0,0.01048031]
[1727098743341,0.35051047,63261.0,63260.0,0.01048031]
[1727098743931,0.08146147,63261.0,63260.0,0.01048031]
[1727098744538,0.00241247,63261.0,63260.0,0.01048031]
[1727098744937,0.00241247,63261.0,63260.0,0.08953031]
[1727098745250,0.00241247,63261.0,63260.0,0.56377031]
[1727098745543,0.00241247,63261.0,63260.0,1.16377031]
[1727098745738,0.00146497,63264.0,63263.0,0.079047]
[1727098745931,0.00292639,63267.0,63266.0,0.19]
[1727098746135,0.00292639,63267.0,63266.0,0.5508]
[1727098746739,0.00292639,63267.0,63266.0,0.079043]
[1727098747259,0.15809,63264.0,63263.0,0.00096]
[1727098747553,0.269045,63264.0,63260.0,0.01048031]
[1727098747738,0.079049,63261.0,63260.0,0.01048031]
[1727098749242,0.158098,63261.0,63260.0,0.01048031]
[1727098749953,0.079049,63261.0,63260.0,0.01048031]
[1727098750143,0.080049,63261.0,63260.0,0.01048031]
[1727098750655,0.001,63261.0,63260.0,0.01048031]
[1727098750947,0.001,63261.0,63260.0,1.51048031]
[1727098751150,0.001,63261.0,63260.0,1.58953031]
[1727098752850,0.00292639,63267.0,63266.0,0.079043]
[1727098754142,0.08196839,63267.0,63266.0,0.079043]
[1727098754342,0.079044,63265.0,63262.0,0.3608]